fUSD/lending_fUSD_20240428
["ID","MTS","AMOUNT","RATE_DAILY","PERIOD"]
[324820946,1714344641802,-500.0,0.00011748,2]
[324820947,1714344641811,-500.0,0.00011748,2]
[324820948,1714344641821,-500.0,0.00011748,2]
[324820949,1714344641830,-500.0,0.00011748,2]
[324820950,1714344641839,-500.0,0.00011748,2]
[324820951,1714344641848,-500.0,0.00011748,2]
[324820952,1714344641858,-500.0,0.00011748,2]
[324820953,1714344641870,-620.2,0.00011748,2]
[324820954,1714344641879,-500.0,0.00011748,2]
[324820955,1714344641888,-500.0,0.00011748,2]
[324820956,1714344641897,-367.7,0.00011748,2]
[324820957,1714344641906,-150.0,0.00011748,2]
[324820958,1714344641915,-500.0,0.00011748,2]
[324820959,1714344641925,-500.0,0.00011748,2]
[324820960,1714344641934,-500.0,0.00011748,2]
[324820961,1714344641943,-500.0,0.00011748,2]
[324820962,1714344641952,-500.0,0.00011748,2]
[324820963,1714344641962,-500.0,0.00011748,2]
[324820964,1714344641971,-500.0,0.00011748,2]
[324820965,1714344641980,-500.0,0.00011748,2]
[324820966,1714344641989,-500.0,0.00011748,2]
[324820967,1714344641999,-681.5,0.00011748,2]
[324820968,1714344642008,-500.0,0.00011748,2]
[324820969,1714344642017,-500.0,0.00011748,2]
[324820970,1714344642026,-500.0,0.00011748,2]
[324820971,1714344642035,-3769.37,0.00011748,2]
[324820972,1714344642044,-500.0,0.00011748,2]
[324820973,1714344642053,-500.0,0.00011748,2]
[324820974,1714344642063,-500.0,0.00011748,2]
[324820975,1714344642072,-500.0,0.00011748,2]
[324820976,1714344642081,-310.54,0.00011748,2]
[324820977,1714344642091,-500.0,0.00011748,2]
[324820978,1714344642100,-500.0,0.00011748,2]
[324820979,1714344642110,-3522.48,0.00011748,2]
[324820980,1714344642121,-500.0,0.00011748,2]
[324820981,1714344642134,-500.0,0.00011748,2]
[324820982,1714344642143,-500.0,0.00011748,2]
[324820983,1714344642152,-355.49,0.00011748,2]
[324820984,1714344642161,-656.22,0.00011748,2]
[324820985,1714344642171,-641.33,0.00011748,2]
[324820986,1714344642179,-500.0,0.00011748,2]
[324820987,1714344642189,-500.0,0.00011748,2]
[324820988,1714344642198,-500.0,0.00011748,2]
[324820989,1714344642209,-500.0,0.00011748,2]
[324820990,1714344642219,-518.95,0.00011748,2]
[324820991,1714344642228,-326.12,0.00011748,2]
[324820992,1714344642237,-500.0,0.00011748,2]
[324820993,1714344642247,-500.0,0.00011748,2]
[324820994,1714344642256,-500.0,0.00011748,2]
[324820995,1714344642265,-500.0,0.00011748,2]
[324820996,1714344642275,-500.0,0.00011748,2]
[324820997,1714344642284,-500.0,0.00011748,2]
[324820998,1714344642294,-500.0,0.00011779,2]
[324820999,1714344642303,-739.83,0.00011779,2]
[324821000,1714344642313,-500.0,0.00011779,2]
[324821001,1714344642322,-604.84,0.00011779,2]
[324821002,1714344642331,-500.0,0.00011779,2]
[324821003,1714344642341,-500.0,0.00011779,2]
[324821004,1714344642350,-500.0,0.00011779,2]
[324821006,1714344642359,-1273.82,0.00011779,2]
[324821008,1714344642372,-11862.4,0.00011779,2]
[324821010,1714344642381,-500.0,0.00011779,2]
[324821012,1714344642389,-500.0,0.00011779,2]
[324821014,1714344642398,-2541.92,0.00011779,2]
[324821016,1714344642406,-500.0,0.00011779,2]
[324821018,1714344642415,-500.0,0.00011779,2]
[324821020,1714344642424,-500.0,0.00011779,2]
[324821022,1714344642433,-500.0,0.0001178,2]
[324821024,1714344642442,-500.0,0.0001178,2]
[324821026,1714344642451,-500.0,0.0001178,2]
[324821028,1714344642460,-500.0,0.0001178,2]
[324821030,1714344642469,-500.0,0.0001178,2]
[324821032,1714344642479,-500.0,0.0001178,2]
[324821034,1714344642488,-412.03952391,0.0001178,2]
[324821036,1714344642497,-500.0,0.0001178,2]
[324821038,1714344642506,-500.0,0.0001178,2]
[324821040,1714344642515,-500.0,0.0001178,2]
[324821042,1714344642523,-500.0,0.0001178,2]
[324821044,1714344642532,-500.0,0.0001178,2]
[324821046,1714344642541,-500.0,0.0001178,2]
[324821047,1714344642550,-500.0,0.0001178,2]
[324821048,1714344642559,-500.0,0.0001178,2]
[324821049,1714344642569,-500.0,0.0001178,2]
[324821050,1714344642578,-500.0,0.0001178,2]
[324821051,1714344642587,-500.0,0.0001178,2]
[324821052,1714344642596,-288.0,0.00011946,2]
[324821053,1714344642605,-12763.79636228,0.00012,2]
[324821054,1714344642614,-409.24645721,0.00012,2]
[324821055,1714344642625,-5000.0,0.00012,2]
[324821056,1714344642634,-205.31,0.00012021,2]
[324821057,1714344642643,-1815.32,0.00012021,2]
[324821058,1714344642652,-500.0,0.00012021,2]
[324821060,1714344642661,-500.0,0.00012021,2]
[324821062,1714344642670,-777.9,0.00012021,2]
[324821063,1714344642679,-500.0,0.00012021,2]
[324821065,1714344642689,-268.8851157,0.00012021,2]
[324821067,1714344642699,-500.0,0.00012021,2]
[324821069,1714344642708,-500.0,0.00012021,2]
[324821071,1714344642716,-500.0,0.00012021,2]
[324821073,1714344642725,-500.0,0.00012021,2]
[324821074,1714344642734,-500.0,0.00012021,2]
[324821075,1714344642743,-500.0,0.00012021,2]
[324821076,1714344642753,-500.0,0.00012021,2]
[324821077,1714344642762,-630.08,0.00012021,2]
[324821078,1714344642770,-500.0,0.00012021,2]
[324821079,1714344642779,-500.0,0.00012021,2]
[324821081,1714344642788,-374.28,0.00012021,2]
[324821083,1714344642797,-583.45,0.00012021,2]
[324821085,1714344642806,-500.0,0.00012021,2]
[324821086,1714344642815,-749.0,0.00012021,2]
[324821088,1714344642825,-500.0,0.00012021,2]
[324821089,1714344642833,-500.0,0.00012021,2]
[324821091,1714344642842,-294.28,0.00012021,2]
[324821093,1714344642851,-500.0,0.00012021,2]
[324821094,1714344642860,-1185.05,0.00012021,2]
[324821095,1714344642872,-500.0,0.00012021,2]
[324821096,1714344642881,-1204.6,0.00012021,2]
[324821097,1714344642890,-500.0,0.00012021,2]
[324821098,1714344642899,-1289.14,0.00012021,2]
[324821099,1714344642907,-535.43,0.00012021,2]
[324821101,1714344642916,-581.49,0.00012021,2]
[324821102,1714344642925,-868.96,0.00012021,2]
[324821104,1714344642934,-1112.24,0.00012021,2]
[324821106,1714344642943,-1089.14,0.00012021,2]
[324821108,1714344642952,-500.0,0.00012021,2]
[324821110,1714344642961,-1629.0,0.00012021,2]
[324821112,1714344642970,-500.0,0.00012021,2]
[324821113,1714344642980,-500.0,0.00012021,2]
[324821114,1714344642990,-809.33,0.00012021,2]
[324821115,1714344643000,-517.36,0.00012021,2]
[324821116,1714344643009,-1009.7,0.00012021,2]
[324821117,1714344643019,-3579.28,0.00012021,2]
[324821118,1714344643028,-500.0,0.00012021,2]
[324821119,1714344643038,-500.0,0.00012021,2]
[324821120,1714344643047,-3165.88,0.00012021,2]
[324821121,1714344643056,-1102.29,0.00012021,2]
[324821122,1714344643067,-500.0,0.00012021,2]
[324821123,1714344643076,-500.0,0.00012021,2]
[324821124,1714344643085,-500.0,0.00012021,2]
[324821125,1714344643094,-500.0,0.00012021,2]
[324821126,1714344643103,-500.0,0.00012021,2]
[324821127,1714344643112,-500.0,0.00012021,2]
[324821128,1714344643124,-954.58,0.00012021,2]
[324821129,1714344643134,-500.0,0.00012021,2]
[324821130,1714344643144,-500.0,0.00012022,2]
[324821131,1714344643153,-500.0,0.00012022,2]
[324821132,1714344643162,-500.0,0.00012022,2]
[324821133,1714344643172,-500.0,0.00012022,2]
[324821134,1714344643181,-500.0,0.00012022,2]
[324821135,1714344643191,-500.0,0.00012022,2]
[324821136,1714344643201,-500.0,0.00012022,2]
[324821137,1714344643212,-500.0,0.00012022,2]
[324821138,1714344643221,-500.0,0.00012022,2]
[324821139,1714344643231,-500.0,0.00012022,2]
[324821140,1714344643240,-500.0,0.00012022,2]
[324821141,1714344643249,-500.0,0.00012022,2]
[324821142,1714344643258,-500.0,0.00012022,2]
[324821143,1714344643267,-500.0,0.00012022,2]
[324821144,1714344643277,-500.0,0.00012022,2]
[324821145,1714344643286,-500.0,0.00012022,2]
[324821146,1714344643295,-500.0,0.00012022,2]
[324821147,1714344643304,-500.0,0.00012022,2]
[324821148,1714344643313,-681.5,0.00012022,2]
[324821149,1714344643322,-500.0,0.00012022,2]
[324821150,1714344643331,-500.0,0.00012022,2]
[324821151,1714344643340,-3769.37,0.00012022,2]
[324821152,1714344643349,-500.0,0.00012022,2]
[324821153,1714344643357,-500.0,0.00012022,2]
[324821154,1714344643366,-500.0,0.00012022,2]
[324821155,1714344643376,-500.0,0.00012022,2]
[324821156,1714344643386,-500.0,0.00012022,2]
[324821158,1714344643394,-500.0,0.00012022,2]
[324821160,1714344643405,-3522.48,0.00012022,2]
[324821161,1714344643413,-500.0,0.00012022,2]
[324821162,1714344643422,-500.0,0.00012022,2]
[324821164,1714344643432,-656.22,0.00012022,2]
[324821165,1714344643441,-641.33,0.00012022,2]
[324821166,1714344643451,-500.0,0.00012022,2]
[324821167,1714344643460,-500.0,0.00012022,2]
[324821168,1714344643469,-500.0,0.00012022,2]
[324821169,1714344643477,-518.95,0.00012022,2]
[324821170,1714344643487,-500.0,0.00012022,2]
[324821171,1714344643495,-500.0,0.00012022,2]
[324821172,1714344643505,-500.0,0.00012022,2]
[324821173,1714344643513,-166.88,0.00012033,2]
[324821174,1714344643523,-739.83,0.00012053,2]
[324821175,1714344643532,-500.0,0.00012053,2]
[324821176,1714344643540,-604.84,0.00012053,2]
[324821177,1714344643549,-500.0,0.00012053,2]
[324821178,1714344643558,-500.0,0.00012053,2]
[324821179,1714344643567,-636.36706385,0.00012053,2]
[324821180,1714344643575,-1273.82,0.00012053,2]
[324821181,1714344643584,-11862.4,0.00012053,2]
[324821182,1714344643593,-500.0,0.00012053,2]
[324821183,1714344643603,-500.0,0.00012053,2]
[324821184,1714344643612,-2541.92,0.00012053,2]
[324821185,1714344643623,-500.0,0.00012053,2]
[324821186,1714344643632,-500.0,0.00012053,2]
[324821187,1714344643640,-500.0,0.00012053,2]
[324821188,1714344643650,-500.0,0.00012054,2]
[324821189,1714344643659,-500.0,0.00012054,2]
[324821190,1714344643668,-500.0,0.00012054,2]
[324821191,1714344643677,-500.0,0.00012054,2]
[324821192,1714344643687,-500.0,0.00012054,2]
[324821193,1714344643697,-500.0,0.00012054,2]
[324821194,1714344643705,-585.11650642,0.00012054,2]
[324821195,1714344643715,-500.0,0.00012054,2]
[324821196,1714344643724,-500.0,0.00012054,2]
[324821197,1714344643734,-500.0,0.00012054,2]
[324821199,1714344643744,-500.0,0.00012054,2]
[324821200,1714344643754,-500.0,0.00012054,2]
[324821201,1714344643764,-500.0,0.00012054,2]
[324821202,1714344643774,-500.0,0.00012054,2]
[324821203,1714344643784,-500.0,0.00012054,2]
[324821204,1714344643794,-500.0,0.00012054,2]
[324821205,1714344643804,-500.0,0.00012054,2]
[324821206,1714344643814,-244.83,0.00012192,2]
[324821207,1714344643824,-1815.32,0.00012295,2]
[324821208,1714344643833,-500.0,0.00012295,2]
[324821209,1714344643844,-500.0,0.00012295,2]
[324821210,1714344643854,-777.9,0.00012295,2]
[324821211,1714344643863,-500.0,0.00012295,2]
[324821212,1714344643874,-500.0,0.00012295,2]
[324821213,1714344643883,-500.0,0.00012295,2]
[324821214,1714344643892,-500.0,0.00012295,2]
[324821215,1714344643902,-500.0,0.00012295,2]
[324821216,1714344643911,-500.0,0.00012295,2]
[324821217,1714344643920,-500.0,0.00012295,2]
[324821218,1714344643929,-500.0,0.00012295,2]
[324821219,1714344643938,-630.08,0.00012295,2]
[324821220,1714344643947,-500.0,0.00012295,2]
[324821221,1714344643956,-500.0,0.00012295,2]
[324821222,1714344643966,-583.45,0.00012295,2]
[324821223,1714344643975,-500.0,0.00012295,2]
[324821224,1714344643984,-749.0,0.00012295,2]
[324821225,1714344643994,-500.0,0.00012295,2]
[324821226,1714344644004,-500.0,0.00012295,2]
[324821227,1714344644014,-500.0,0.00012295,2]
[324821228,1714344644023,-500.0,0.00012295,2]
[324821229,1714344644033,-1185.05,0.00012295,2]
[324821230,1714344644042,-1204.6,0.00012295,2]
[324821231,1714344644052,-500.0,0.00012295,2]
[324821232,1714344644061,-1289.14,0.00012295,2]
[324821233,1714344644072,-535.43,0.00012295,2]
[324821234,1714344644082,-581.49,0.00012295,2]
[324821235,1714344644093,-868.96,0.00012295,2]
[324821236,1714344644102,-1112.24,0.00012295,2]
[324821237,1714344644111,-1089.14,0.00012295,2]
[324821238,1714344644120,-648.87,0.00012295,2]
[324821239,1714344644135,-301.6319159,0.00012295,2]
[324821240,1714344644146,-1629.0,0.00012295,2]
[324821241,1714344644155,-500.0,0.00012295,2]
[324821242,1714344644165,-809.33,0.00012295,2]
[324821243,1714344644175,-517.36,0.00012295,2]
[324821244,1714344644187,-1009.7,0.00012295,2]
[324821245,1714344644199,-3579.28,0.00012295,2]
[324821246,1714344644211,-500.0,0.00012295,2]
[324821247,1714344644221,-500.0,0.00012295,2]
[324821248,1714344644230,-3165.88,0.00012295,2]
[324821249,1714344644394,-1102.29,0.00012295,2]
[324821250,1714344644404,-500.0,0.00012295,2]
[324821251,1714344644413,-500.0,0.00012295,2]
[324821252,1714344644422,-500.0,0.00012295,2]
[324821253,1714344644431,-500.0,0.00012295,2]
[324821254,1714344644441,-500.0,0.00012295,2]
[324821255,1714344644450,-954.58,0.00012295,2]
[324821256,1714344644458,-500.0,0.00012295,2]
[324821257,1714344644468,-500.0,0.00012296,2]
[324821258,1714344644477,-500.0,0.00012296,2]
[324821259,1714344644489,-500.0,0.00012296,2]
[324821260,1714344644500,-500.0,0.00012296,2]
[324821261,1714344644510,-500.0,0.00012296,2]
[324821262,1714344644519,-500.0,0.00012296,2]
[324821263,1714344644528,-196.03231019,0.00012296,2]
[324821264,1714344644537,-500.0,0.00012296,2]
[324821265,1714344644546,-500.0,0.00012296,2]
[324821266,1714344644555,-500.0,0.00012296,2]
[324821267,1714344644564,-500.0,0.00012296,2]
[324821268,1714344644574,-500.0,0.00012296,2]
[324821269,1714344644583,-681.5,0.00012296,2]
[324821270,1714344644592,-500.0,0.00012296,2]
[324821271,1714344644602,-500.0,0.00012296,2]
[324821272,1714344644611,-3769.37,0.00012296,2]
[324821273,1714344644622,-500.0,0.00012296,2]
[324821274,1714344644632,-500.0,0.00012296,2]
[324821275,1714344644640,-500.0,0.00012296,2]
[324821276,1714344644650,-500.0,0.00012296,2]
[324821277,1714344644659,-500.0,0.00012296,2]
[324821278,1714344644668,-500.0,0.00012296,2]
[324821279,1714344644677,-3522.48,0.00012296,2]
[324821280,1714344644687,-613.21,0.00012296,2]
[324821281,1714344644696,-500.0,0.00012296,2]
[324821282,1714344644707,-656.22,0.00012296,2]
[324821283,1714344644717,-641.33,0.00012296,2]
[324821284,1714344644727,-500.0,0.00012296,2]
[324821285,1714344644738,-500.0,0.00012296,2]
[324821286,1714344644748,-291.73617837,0.00012296,2]
[324821287,1714344645183,-500.0,0.00011473,2]
[324821288,1714344645193,-500.0,0.00011747,2]
[324821289,1714344645202,-500.0,0.00012021,2]
[324821290,1714344645213,-500.0,0.00012021,2]
[324821291,1714344645223,-500.0,0.00012295,2]
[324821292,1714344645233,-500.0,0.00012295,2]
[324821293,1714344645243,-208.26382163,0.00012296,2]
[324821294,1714344645254,-518.95,0.00012296,2]
[324821295,1714344645263,-500.0,0.00012296,2]
[324821296,1714344645273,-500.0,0.00012296,2]
[324821297,1714344645283,-500.0,0.00012296,2]
[324821298,1714344645294,-739.83,0.00012327,2]
[324821299,1714344645304,-500.0,0.00012327,2]
[324821300,1714344645315,-604.84,0.00012327,2]
[324821301,1714344645324,-500.0,0.00012327,2]
[324821302,1714344645333,-500.0,0.00012327,2]
[324821303,1714344645342,-1273.82,0.00012327,2]
[324821304,1714344645351,-3306.42525041,0.00012327,2]
[324821305,1714344645464,-316.48671,0.00012327,2]
[324821306,1714344645491,-1000.87999974,0.00012327,2]
[324821307,1714344645504,-704.733448,0.00012327,2]
[324821308,1714344645516,-2414.60416285,0.00012327,2]
[324821309,1714344645529,-4119.270429,0.00012327,2]
[324821310,1714344645538,-500.0,0.00012327,2]
[324821311,1714344645548,-1719.229571,0.00012327,2]
[324821312,1714344645566,-822.690429,0.00012327,2]
[324821313,1714344645576,-500.0,0.00012327,2]
[324821314,1714344645586,-500.0,0.00012327,2]
[324821315,1714344645595,-500.0,0.00012327,2]
[324821316,1714344645604,-500.0,0.00012328,2]
[324821317,1714344645614,-500.0,0.00012328,2]
[324821318,1714344645623,-500.0,0.00012328,2]
[324821319,1714344645632,-500.0,0.00012328,2]
[324821320,1714344645642,-455.87190476,0.00012328,2]
[324821321,1714344645666,-44.12809524,0.00012328,2]
[324821322,1714344645675,-240.54190476,0.00012328,2]
[324821323,1714344645686,-259.45809524,0.00012328,2]
[324821324,1714344645695,-5.02943859,0.00012328,2]
[324821325,1714344645999,-311.58,0.00011474,2]
[324821326,1714344646009,-155.0,0.00011778,2]
[324821327,1714344646018,-494.97056141,0.00012328,2]
[324821328,1714344646028,-500.0,0.00012328,2]
[324821329,1714344646037,-500.0,0.00012328,2]
[324821330,1714344646046,-500.0,0.00012328,2]
[324821331,1714344646056,-500.0,0.00012328,2]
[324821332,1714344646065,-500.0,0.00012328,2]
[324821333,1714344646075,-500.0,0.00012328,2]
[324821334,1714344646084,-500.0,0.00012328,2]
[324821335,1714344646093,-500.0,0.00012328,2]
[324821336,1714344646103,-500.0,0.00012328,2]
[324821337,1714344646112,-1000.0,0.00012447,2]
[324821338,1714344646122,-251.74141407,0.000125,2]
[324821339,1714344646137,-1815.32,0.00012569,2]
[324821340,1714344646146,-500.0,0.00012569,2]
[324821341,1714344646156,-777.9,0.00012569,2]
[324821342,1714344646165,-500.0,0.00012569,2]
[324821343,1714344646177,-500.0,0.00012569,2]
[324821344,1714344646186,-500.0,0.00012569,2]
[324821345,1714344646196,-500.0,0.00012569,2]
[324821346,1714344646207,-500.0,0.00012569,2]
[324821348,1714344646216,-500.0,0.00012569,2]
[324821350,1714344646225,-500.0,0.00012569,2]
[324821351,1714344646234,-500.0,0.00012569,2]
[324821352,1714344646243,-630.08,0.00012569,2]
[324821353,1714344646252,-500.0,0.00012569,2]
[324821354,1714344646263,-500.0,0.00012569,2]
[324821355,1714344646272,-583.45,0.00012569,2]
[324821356,1714344646281,-500.0,0.00012569,2]
[324821357,1714344646292,-749.0,0.00012569,2]
[324821358,1714344646301,-500.0,0.00012569,2]
[324821359,1714344646310,-500.0,0.00012569,2]
[324821360,1714344646320,-500.0,0.00012569,2]
[324821361,1714344646329,-1185.05,0.00012569,2]
[324821362,1714344646339,-500.0,0.00012569,2]
[324821363,1714344646348,-1204.6,0.00012569,2]
[324821364,1714344646358,-500.0,0.00012569,2]
[324821365,1714344646367,-1289.14,0.00012569,2]
[324821366,1714344646378,-535.43,0.00012569,2]
[324821367,1714344646387,-581.49,0.00012569,2]
[324821368,1714344646396,-868.96,0.00012569,2]
[324821369,1714344646406,-1112.24,0.00012569,2]
[324821370,1714344646417,-1089.14,0.00012569,2]
[324821371,1714344646427,-1629.0,0.00012569,2]
[324821372,1714344646437,-500.0,0.00012569,2]
[324821373,1714344646447,-809.33,0.00012569,2]
[324821374,1714344646456,-517.36,0.00012569,2]
[324821375,1714344646465,-1009.7,0.00012569,2]
[324821376,1714344646474,-3579.28,0.00012569,2]
[324821377,1714344646483,-500.0,0.00012569,2]
[324821378,1714344646492,-500.0,0.00012569,2]
[324821379,1714344646502,-3165.88,0.00012569,2]
[324821380,1714344646511,-1102.29,0.00012569,2]
[324821381,1714344646519,-500.0,0.00012569,2]
[324821382,1714344646529,-500.0,0.00012569,2]
[324821383,1714344646538,-500.0,0.00012569,2]
[324821384,1714344646547,-500.0,0.00012569,2]
[324821385,1714344646556,-954.58,0.00012569,2]
[324821386,1714344646565,-500.0,0.00012569,2]
[324821387,1714344646619,-500.0,0.00012569,2]
[324821388,1714344646630,-500.0,0.00012569,2]
[324821389,1714344646639,-500.0,0.0001257,2]
[324821390,1714344646648,-500.0,0.0001257,2]
[324821391,1714344646658,-500.0,0.0001257,2]
[324821392,1714344646668,-500.0,0.0001257,2]
[324821393,1714344646677,-500.0,0.0001257,2]
[324821394,1714344646686,-500.0,0.0001257,2]
[324821395,1714344646695,-500.0,0.0001257,2]
[324821396,1714344646705,-500.0,0.0001257,2]
[324821397,1714344646714,-500.0,0.0001257,2]
[324821398,1714344646723,-500.0,0.0001257,2]
[324821399,1714344646732,-681.5,0.0001257,2]
[324821400,1714344646741,-500.0,0.0001257,2]
[324821401,1714344646752,-500.0,0.0001257,2]
[324821402,1714344646761,-3769.37,0.0001257,2]
[324821403,1714344646771,-500.0,0.0001257,2]
[324821404,1714344646780,-500.0,0.0001257,2]
[324821405,1714344646791,-500.0,0.0001257,2]
[324821406,1714344646801,-500.0,0.0001257,2]
[324821407,1714344646811,-500.0,0.0001257,2]
[324821408,1714344646820,-3522.48,0.0001257,2]
[324821409,1714344646830,-500.0,0.0001257,2]
[324821410,1714344646839,-656.22,0.0001257,2]
[324821411,1714344646848,-641.33,0.0001257,2]
[324821412,1714344646857,-516.43305103,0.0001257,2]
[324821413,1714344646866,-500.0,0.0001257,2]
[324821414,1714344646876,-500.0,0.0001257,2]
[324821415,1714344646885,-518.95,0.0001257,2]
[324821416,1714344646894,-500.0,0.0001257,2]
[324821417,1714344646904,-500.0,0.0001257,2]
[324821418,1714344646913,-739.83,0.00012601,2]
[324821419,1714344646922,-500.0,0.00012601,2]
[324821420,1714344646931,-604.84,0.00012601,2]
[324821421,1714344646940,-500.0,0.00012601,2]
[324821423,1714344646949,-500.0,0.00012601,2]
[324821424,1714344646958,-1273.82,0.00012601,2]
[324821425,1714344646967,-11862.4,0.00012601,2]
[324821426,1714344646976,-500.0,0.00012601,2]
[324821427,1714344646985,-2541.92,0.00012601,2]
[324821428,1714344646994,-244.04374394,0.00012601,2]
[324821429,1714344647003,-367.64744969,0.00012601,2]
[324821430,1714344647012,-500.0,0.00012601,2]
[324821431,1714344647021,-500.0,0.00012602,2]
[324821432,1714344647031,-500.0,0.00012602,2]
[324821433,1714344647040,-500.0,0.00012602,2]
[324821434,1714344647049,-500.0,0.00012602,2]
[324821435,1714344647059,-500.0,0.00012602,2]
[324821436,1714344647068,-500.0,0.00012602,2]
[324821437,1714344647077,-500.0,0.00012602,2]
[324821438,1714344647087,-500.0,0.00012602,2]
[324821439,1714344647096,-500.0,0.00012602,2]
[324821440,1714344647106,-500.0,0.00012602,2]
[324821441,1714344647115,-500.0,0.00012602,2]
[324821442,1714344647125,-500.0,0.00012602,2]
[324821443,1714344647137,-500.0,0.00012602,2]
[324821444,1714344647146,-500.0,0.00012602,2]
[324821445,1714344647155,-338.29,0.00012602,2]
[324821446,1714344647165,-500.0,0.00012602,2]
[324821447,1714344647175,-271.35,0.00012721,2]
[324821448,1714344647184,-1815.32,0.00012843,2]
[324821449,1714344647194,-500.0,0.00012843,2]
[324821450,1714344647203,-777.9,0.00012843,2]
[324821451,1714344647215,-500.0,0.00012843,2]
[324821452,1714344647224,-500.0,0.00012843,2]
[324821453,1714344647234,-500.0,0.00012843,2]
[324821454,1714344647244,-500.0,0.00012843,2]
[324821455,1714344647254,-500.0,0.00012843,2]
[324821456,1714344647264,-500.0,0.00012843,2]
[324821457,1714344647274,-500.0,0.00012843,2]
[324821458,1714344647284,-500.0,0.00012843,2]
[324821459,1714344647293,-630.08,0.00012843,2]
[324821460,1714344647304,-500.0,0.00012843,2]
[324821461,1714344647314,-612.25135617,0.00012843,2]
[324821462,1714344647323,-583.45,0.00012843,2]
[324821463,1714344647333,-500.0,0.00012843,2]
[324821464,1714344647343,-749.0,0.00012843,2]
[324821465,1714344647353,-500.0,0.00012843,2]
[324821466,1714344647363,-500.0,0.00012843,2]
[324821467,1714344647373,-500.0,0.00012843,2]
[324821468,1714344647383,-500.0,0.00012843,2]
[324821469,1714344647392,-1185.05,0.00012843,2]
[324821470,1714344647402,-1204.6,0.00012843,2]
[324821471,1714344647412,-500.0,0.00012843,2]
[324821472,1714344647422,-1289.14,0.00012843,2]
[324821473,1714344647432,-535.43,0.00012843,2]
[324821474,1714344647442,-581.49,0.00012843,2]
[324821475,1714344647452,-868.96,0.00012843,2]
[324821476,1714344647461,-1112.24,0.00012843,2]
[324821477,1714344647471,-1089.14,0.00012843,2]
[324821478,1714344647480,-1629.0,0.00012843,2]
[324821479,1714344647490,-500.0,0.00012843,2]
[324821480,1714344647499,-809.33,0.00012843,2]
[324821481,1714344647509,-517.36,0.00012843,2]
[324821482,1714344647518,-1009.7,0.00012843,2]
[324821483,1714344647528,-3579.28,0.00012843,2]
[324821484,1714344647537,-500.0,0.00012843,2]
[324821485,1714344647547,-500.0,0.00012843,2]
[324821486,1714344647557,-3165.88,0.00012843,2]
[324821487,1714344647567,-1102.29,0.00012843,2]
[324821488,1714344647576,-500.0,0.00012843,2]
[324821489,1714344647586,-500.0,0.00012843,2]
[324821490,1714344647595,-500.0,0.00012843,2]
[324821491,1714344647606,-500.0,0.00012843,2]
[324821492,1714344647615,-954.58,0.00012843,2]